fUSD/lending_fUSD_20240114
["ID","MTS","AMOUNT","RATE_DAILY","PERIOD"]
[311602523,1705264280836,-500.0,0.00030684,2]
[311602524,1705264280846,-1641.51,0.00030684,2]
[311602525,1705264280857,-2203.79,0.00030684,2]
[311602526,1705264280870,-1057.67,0.00030684,2]
[311602527,1705264280879,-500.0,0.00030684,2]
[311602528,1705264280888,-2139.26,0.00030684,2]
[311602529,1705264280897,-3320.2,0.00030684,2]
[311602530,1705264280906,-500.0,0.00030684,2]
[311602531,1705264280915,-1109.41,0.00030684,2]
[311602532,1705264280923,-500.0,0.00030684,2]
[311602533,1705264280932,-500.0,0.00030684,2]
[311602534,1705264280941,-500.0,0.00030684,2]
[311602535,1705264280950,-1312.2,0.00030684,2]
[311602536,1705264280960,-1370.66,0.00030684,2]
[311602537,1705264280970,-151.0,0.00030684,7]
[311602538,1705264280980,-202.53577,0.00030684,7]
[311602539,1705264280989,-202.53577,0.00030684,7]
[311602540,1705264280999,-202.53577,0.00030684,7]
[311602541,1705264281009,-202.53577,0.00030684,7]
[311602542,1705264281019,-151.0,0.00030684,7]
[311602543,1705264281029,-151.0,0.00030684,7]
[311602544,1705264281039,-160.005945,0.00030684,7]
[311602545,1705264281048,-160.005945,0.00030684,7]
[311602546,1705264281147,-160.005945,0.00030684,7]
[311602547,1705264281158,-160.005945,0.00030684,7]
[311602548,1705264281167,-151.0,0.00030684,7]
[311602549,1705264281176,-151.0,0.00030684,7]
[311602550,1705264281185,-213.08,0.00030684,7]
[311602551,1705264281195,-5000.0,0.00030802,2]
[311602552,1705264281205,-408.24,0.00030805,2]
[311602553,1705264281214,-150.0,0.00030805,2]
[311602554,1705264281224,-400.96,0.00030805,2]
[311602555,1705264281234,-408.24,0.00030805,2]
[311602556,1705264281244,-835.01,0.00030805,2]
[311602557,1705264281254,-205.0,0.00030868,15]
[311602558,1705264281264,-283.15476229,0.000309,2]
[311602559,1705264281273,-283.15476148,0.000309,2]
[311602560,1705264281283,-852.37,0.00030944,2]
[311602561,1705264281293,-500.0,0.00030958,2]
[311602562,1705264281303,-500.0,0.00030958,2]
[311602563,1705264281313,-500.0,0.00030958,2]
[311602564,1705264281322,-500.0,0.00030958,2]
[311602565,1705264281333,-500.0,0.00030958,2]
[311602566,1705264281343,-500.0,0.00030958,2]
[311602567,1705264281355,-500.0,0.00030958,2]
[311602568,1705264281366,-500.0,0.00030958,2]
[311602569,1705264281375,-500.0,0.00030958,2]
[311602570,1705264281388,-500.0,0.00030958,2]
[311602571,1705264281398,-235.61467784,0.00030958,2]
[311602572,1705264281407,-500.0,0.00030958,2]
[311602573,1705264281417,-500.0,0.00030958,2]
[311602574,1705264281426,-500.0,0.00030958,2]
[311602575,1705264281435,-500.0,0.00030958,2]
[311602576,1705264281445,-500.0,0.00030958,2]
[311602577,1705264281455,-500.0,0.00030958,2]
[311602578,1705264281465,-522.7,0.00030958,2]
[311602579,1705264281474,-500.0,0.00030958,2]
[311602580,1705264281484,-500.0,0.00030958,2]
[311602581,1705264281494,-543.8,0.00030958,2]
[311602582,1705264281504,-500.0,0.00030958,2]
[311602583,1705264281514,-250.0,0.00030958,2]
[311602584,1705264281523,-518.27,0.00030958,2]
[311602585,1705264281533,-500.0,0.00030958,2]
[311602586,1705264281543,-512.56,0.00030958,2]
[311602587,1705264281552,-500.0,0.00030958,2]
[311602588,1705264281562,-500.0,0.00030958,2]
[311602589,1705264281571,-500.0,0.00030958,2]
[311602590,1705264281581,-528.06,0.00030958,2]
[311602591,1705264281590,-500.0,0.00030958,2]
[311602592,1705264281600,-538.04,0.00030958,2]
[311602593,1705264281609,-500.0,0.00030958,2]
[311602594,1705264281619,-500.0,0.00030958,2]
[311602595,1705264281628,-500.0,0.00030958,2]
[311602596,1705264281637,-500.0,0.00030958,2]
[311602597,1705264281647,-500.0,0.00030958,2]
[311602598,1705264281656,-829.92,0.00030958,2]
[311602599,1705264281665,-500.0,0.00030958,2]
[311602600,1705264281674,-500.0,0.00030958,2]
[311602601,1705264281684,-831.82,0.00030958,2]
[311602602,1705264281694,-500.0,0.00030958,2]
[311602603,1705264281703,-500.0,0.00030958,2]
[311602604,1705264281712,-500.0,0.00030958,2]
[311602605,1705264281721,-500.0,0.00030958,2]
[311602606,1705264281730,-343.09707287,0.00030958,2]
[311602607,1705264281739,-753.34,0.00030958,2]
[311602608,1705264281748,-500.0,0.00030958,2]
[311602609,1705264281757,-500.0,0.00030958,2]
[311602610,1705264281766,-716.55,0.00030958,2]
[311602611,1705264281776,-500.0,0.00030958,2]
[311602612,1705264281785,-500.0,0.00030958,2]
[311602613,1705264281795,-500.0,0.00030958,2]
[311602614,1705264281804,-500.0,0.00030958,2]
[311602615,1705264281814,-549.71,0.00030958,2]
[311602616,1705264281823,-500.0,0.00030958,2]
[311602617,1705264281833,-500.0,0.00030958,2]
[311602618,1705264281842,-534.55,0.00030958,2]
[311602619,1705264281852,-500.0,0.00030958,2]
[311602620,1705264281863,-500.0,0.00030958,2]
[311602621,1705264281875,-511.27,0.00030958,2]
[311602622,1705264281884,-554.03,0.00030958,2]
[311602623,1705264281893,-500.0,0.00030958,2]
[311602624,1705264281902,-500.0,0.00030958,2]
[311602625,1705264281911,-662.74,0.00030958,2]
[311602626,1705264281920,-590.75,0.00030958,2]
[311602627,1705264281929,-500.0,0.00030958,2]
[311602628,1705264281938,-500.0,0.00030958,2]
[311602629,1705264281947,-500.0,0.00030958,2]
[311602630,1705264281955,-500.0,0.00030958,2]
[311602631,1705264281965,-516.48806977,0.00030958,15]
[311602632,1705264281975,-500.0,0.00030958,2]
[311602633,1705264281984,-852.63,0.00030958,2]
[311602634,1705264281993,-500.0,0.00030958,2]
[311602635,1705264282002,-500.0,0.00030958,2]
[311602636,1705264282012,-519.79798177,0.00030958,2]
[311602637,1705264282022,-500.0,0.00030958,2]
[311602638,1705264282031,-500.0,0.00030958,2]
[311602639,1705264282040,-500.0,0.00030958,2]
[311602640,1705264282050,-500.0,0.00030958,2]
[311602641,1705264282059,-500.0,0.00030958,2]
[311602642,1705264282068,-500.0,0.00030958,2]
[311602643,1705264282077,-500.0,0.00030958,2]
[311602644,1705264282087,-500.0,0.00030958,2]
[311602645,1705264282097,-556.75,0.00030958,2]
[311602646,1705264282106,-500.0,0.00030958,2]
[311602647,1705264282115,-500.0,0.00030958,2]
[311602648,1705264282125,-500.0,0.00030958,2]
[311602649,1705264282134,-584.84,0.00030958,2]
[311602650,1705264282144,-500.0,0.00030958,2]
[311602651,1705264282154,-500.0,0.00030958,2]
[311602652,1705264282164,-500.0,0.00030958,2]
[311602653,1705264282173,-955.59,0.00030958,2]
[311602654,1705264282182,-500.0,0.00030958,2]
[311602655,1705264282191,-500.0,0.00030958,2]
[311602656,1705264282200,-500.0,0.00030958,2]
[311602657,1705264282211,-500.0,0.00030958,2]
[311602658,1705264282220,-500.0,0.00030958,2]
[311602659,1705264282229,-500.0,0.00030958,2]
[311602660,1705264282238,-904.67,0.00030958,2]
[311602661,1705264282247,-500.0,0.00030958,2]
[311602662,1705264282255,-500.0,0.00030958,2]
[311602663,1705264282265,-500.0,0.00030958,2]
[311602664,1705264282274,-500.0,0.00030958,2]
[311602665,1705264282283,-500.0,0.00030958,2]
[311602666,1705264282292,-500.0,0.00030958,2]
[311602667,1705264282302,-500.0,0.00030958,2]
[311602668,1705264282311,-500.0,0.00030958,2]
[311602669,1705264282320,-189.19103106,0.00030958,2]
[311602670,1705264282329,-500.0,0.00030958,2]
[311602671,1705264282338,-500.0,0.00030958,2]
[311602672,1705264282347,-508.74,0.00030958,2]
[311602673,1705264282358,-500.0,0.00030958,2]
[311602674,1705264282367,-500.0,0.00030958,2]
[311602675,1705264282376,-501.92,0.00030958,2]
[311602676,1705264282385,-500.0,0.00030958,2]
[311602677,1705264282393,-500.0,0.00030958,2]
[311602678,1705264282402,-502.98,0.00030958,2]
[311602679,1705264282411,-500.0,0.00030958,2]
[311602680,1705264282420,-549.05,0.00030958,2]
[311602681,1705264282429,-500.0,0.00030958,2]
[311602682,1705264282437,-500.0,0.00030958,2]
[311602683,1705264282447,-768.43,0.00030958,2]
[311602684,1705264282456,-500.0,0.00030958,2]
[311602685,1705264282466,-500.0,0.00030958,2]
[311602686,1705264282475,-733.75,0.00030958,2]
[311602687,1705264282484,-1482.34,0.00030958,2]
[311602688,1705264282493,-500.0,0.00030958,2]
[311602689,1705264282502,-500.0,0.00030958,2]
[311602690,1705264282511,-987.24,0.00030958,2]
[311602691,1705264282520,-500.0,0.00030958,2]
[311602692,1705264282529,-500.0,0.00030958,2]
[311602693,1705264282538,-500.0,0.00030958,2]
[311602694,1705264282547,-500.0,0.00030958,2]
[311602695,1705264282556,-500.0,0.00030958,2]
[311602696,1705264282565,-321.24800978,0.00030958,2]
[311602697,1705264282574,-500.0,0.00030958,2]
[311602698,1705264282583,-500.0,0.00030958,2]
[311602699,1705264282592,-500.0,0.00030958,2]
[311602700,1705264282602,-500.0,0.00030958,2]
[311602701,1705264282612,-500.0,0.00030958,2]
[311602702,1705264282622,-522.06,0.00030958,2]
[311602703,1705264282630,-500.0,0.00030958,2]
[311602704,1705264282639,-902.15,0.00030958,2]
[311602705,1705264282648,-500.0,0.00030958,2]
[311602706,1705264282656,-500.0,0.00030958,2]
[311602707,1705264282665,-500.0,0.00030958,2]
[311602708,1705264282674,-500.0,0.00030958,2]
[311602709,1705264282683,-500.0,0.00030958,2]
[311602710,1705264282692,-500.0,0.00030958,2]
[311602711,1705264282701,-500.0,0.00030958,2]
[311602712,1705264282711,-500.0,0.00030958,2]
[311602713,1705264282720,-633.15,0.00030958,2]
[311602714,1705264282730,-500.0,0.00030958,2]
[311602715,1705264282739,-500.0,0.00030958,2]
[311602716,1705264282749,-500.0,0.00030958,2]
[311602717,1705264282759,-500.0,0.00030958,2]
[311602718,1705264282768,-733.43,0.00030958,2]
[311602719,1705264282778,-500.0,0.00030958,2]
[311602720,1705264282787,-681.94,0.00030958,2]
[311602721,1705264282797,-500.0,0.00030958,2]
[311602722,1705264282806,-500.0,0.00030958,2]
[311602723,1705264282816,-500.0,0.00030958,2]
[311602724,1705264282825,-500.0,0.00030958,2]
[311602725,1705264282834,-500.0,0.00030958,2]
[311602726,1705264282843,-643.01491137,0.00030958,2]
[311602727,1705264282852,-861.38,0.00030958,2]
[311602728,1705264282862,-500.0,0.00030958,2]
[311602729,1705264282871,-731.62,0.00030958,2]
[311602730,1705264282880,-607.46,0.00030958,2]
[311602731,1705264282890,-871.23,0.00030958,2]
[311602732,1705264282899,-540.76,0.00030958,2]
[311602733,1705264282908,-500.0,0.00030958,2]
[311602734,1705264282917,-500.0,0.00030958,2]
[311602735,1705264282926,-500.0,0.00030958,2]
[311602736,1705264282935,-500.0,0.00030958,2]
[311602737,1705264282945,-500.0,0.00030958,2]
[311602738,1705264282955,-573.03,0.00030958,2]
[311602739,1705264282964,-500.0,0.00030958,2]
[311602740,1705264282973,-500.0,0.00030958,2]
[311602741,1705264282982,-500.0,0.00030958,2]
[311602742,1705264282992,-500.0,0.00030958,2]
[311602743,1705264283001,-500.0,0.00030958,2]
[311602744,1705264283010,-541.18,0.00030958,2]
[311602745,1705264283019,-500.0,0.00030958,2]
[311602746,1705264283029,-500.0,0.00030958,2]
[311602747,1705264283038,-1043.04,0.00030958,2]
[311602748,1705264283047,-524.14,0.00030958,2]
[311602749,1705264283057,-971.45,0.00030958,2]
[311602750,1705264283066,-720.76,0.00030958,2]
[311602751,1705264283076,-1331.65,0.00030958,2]
[311602752,1705264283085,-500.0,0.00030958,2]
[311602753,1705264283095,-500.0,0.00030958,2]
[311602754,1705264283105,-500.0,0.00030958,2]
[311602755,1705264283115,-500.0,0.00030958,2]
[311602756,1705264283125,-500.0,0.00030958,2]
[311602757,1705264283135,-500.0,0.00030958,2]
[311602758,1705264283147,-887.35,0.00030958,2]
[311602759,1705264283157,-500.0,0.00030958,2]
[311602760,1705264283166,-1632.65,0.00030958,2]
[311602761,1705264283175,-1287.99,0.00030958,2]
[311602762,1705264283185,-500.0,0.00030958,2]
[311602763,1705264283195,-500.0,0.00030958,2]
[311602764,1705264283205,-500.0,0.00030958,2]
[311602765,1705264283214,-500.0,0.00030958,2]
[311602766,1705264283224,-500.0,0.00030958,2]
[311602767,1705264283235,-568.32,0.00030958,2]
[311602768,1705264283245,-1075.72,0.00030958,2]
[311602769,1705264283255,-500.0,0.00030958,2]
[311602770,1705264283264,-966.98,0.00030958,2]
[311602771,1705264283274,-1190.52,0.00030958,2]
[311602772,1705264283284,-611.32,0.00030958,2]
[311602773,1705264283294,-500.0,0.00030958,2]
[311602774,1705264283303,-1150.22,0.00030958,2]
[311602775,1705264283312,-500.0,0.00030958,2]
[311602776,1705264283322,-804.23,0.00030958,2]
[311602777,1705264283331,-500.0,0.00030958,2]
[311602778,1705264283340,-881.95,0.00030958,2]
[311602779,1705264283350,-500.0,0.00030958,2]
[311602780,1705264283360,-500.0,0.00030958,2]
[311602781,1705264283369,-500.0,0.00030958,2]
[311602782,1705264283378,-500.0,0.00030958,2]
[311602783,1705264283387,-523.69,0.00030958,2]
[311602784,1705264283397,-604.18,0.00030958,2]
[311602785,1705264283406,-737.47,0.00030958,2]
[311602786,1705264283416,-500.0,0.00030958,2]
[311602787,1705264283425,-500.0,0.00030958,2]
[311602788,1705264283435,-500.0,0.00030958,2]
[311602789,1705264283444,-500.0,0.00030958,2]
[311602790,1705264283453,-816.74,0.00030958,2]
[311602791,1705264283463,-500.0,0.00030958,2]
[311602792,1705264283472,-500.0,0.00030958,2]
[311602793,1705264283482,-500.0,0.00030958,2]
[311602794,1705264283491,-1018.42,0.00030958,2]
[311602795,1705264283500,-500.0,0.00030958,2]
[311602796,1705264283509,-500.0,0.00030958,2]
[311602797,1705264283519,-500.0,0.00030958,2]
[311602798,1705264283528,-691.77,0.00030958,2]
[311602799,1705264283538,-532.86,0.00030958,2]
[311602800,1705264283547,-500.0,0.00030958,2]
[311602801,1705264283556,-500.0,0.00030958,2]
[311602802,1705264283565,-500.0,0.00030958,2]
[311602803,1705264283574,-500.0,0.00030958,2]
[311602804,1705264283584,-500.0,0.00030958,2]
[311602805,1705264283593,-500.0,0.00030958,2]
[311602806,1705264283603,-500.0,0.00030958,2]
[311602807,1705264283613,-624.45,0.00030958,2]
[311602808,1705264283622,-592.67,0.00030958,2]
[311602809,1705264283631,-500.0,0.00030958,2]
[311602810,1705264283640,-840.8,0.00030958,2]
[311602811,1705264283649,-901.33,0.00030958,2]
[311602812,1705264283658,-1035.43,0.00030958,2]
[311602813,1705264283667,-500.0,0.00030958,2]
[311602814,1705264283677,-500.0,0.00030958,2]
[311602815,1705264283686,-983.46,0.00030958,2]
[311602816,1705264283694,-500.0,0.00030958,2]
[311602817,1705264283703,-245.40211176,0.00030958,2]
[311602818,1705264283713,-500.0,0.00030958,2]
[311602819,1705264283722,-705.45,0.00030958,2]
[311602820,1705264283731,-500.0,0.00030958,2]
[311602821,1705264283740,-511.79,0.00030958,2]
[311602822,1705264283749,-500.0,0.00030958,2]
[311602823,1705264283758,-531.03,0.00030958,2]
[311602824,1705264283767,-583.5,0.00030958,2]
[311602825,1705264283776,-500.0,0.00030958,2]
[311602826,1705264283785,-500.0,0.00030958,2]
[311602827,1705264283794,-652.55,0.00030958,2]
[311602828,1705264283803,-500.0,0.00030958,2]
[311602829,1705264283812,-500.0,0.00030958,2]
[311602830,1705264283821,-519.09,0.00030958,2]
[311602831,1705264283830,-500.0,0.00030958,2]
[311602832,1705264283839,-603.94,0.00030958,2]
[311602833,1705264283849,-782.01,0.00030958,2]
[311602834,1705264283861,-453.14292752,0.00030958,2]
[311602835,1705264283870,-204.91026275,0.00030958,2]
[311602836,1705264283879,-919.27,0.00030958,2]
[311602837,1705264283887,-655.09,0.00030958,2]
[311602838,1705264283896,-848.01,0.00030958,2]
[311602839,1705264283906,-500.0,0.00030958,2]
[311602840,1705264283915,-300.0,0.00030958,2]
[311602841,1705264283924,-500.0,0.00030958,2]
[311602842,1705264283933,-500.0,0.00030958,2]
[311602843,1705264283942,-500.0,0.00030958,2]
[311602844,1705264283951,-512.56,0.00030958,2]
[311602845,1705264283960,-550.67387873,0.00030958,2]
[311602846,1705264283969,-500.0,0.00030958,2]
[311602847,1705264283979,-912.72,0.00030958,2]
[311602848,1705264283988,-773.77,0.00030958,2]
[311602849,1705264283997,-396.14,0.00030958,2]
[311602850,1705264284006,-500.0,0.00030958,2]
[311602851,1705264284015,-932.74,0.00030958,2]
[311602852,1705264284024,-672.78,0.00030958,2]
[311602853,1705264284033,-500.0,0.00030958,2]
[311602854,1705264284042,-500.0,0.00030958,2]
[311602855,1705264284051,-675.44,0.00030958,2]
[311602856,1705264284061,-592.65,0.00030958,2]
[311602857,1705264284070,-812.07,0.00030958,2]
[311602858,1705264284079,-623.53,0.00030958,2]
[311602859,1705264284088,-500.0,0.00030958,2]
[311602860,1705264284097,-500.0,0.00030958,2]
[311602861,1705264284108,-901.97,0.00030958,2]
[311602862,1705264284117,-500.0,0.00030958,2]
[311602863,1705264284126,-584.39,0.00030958,2]
[311602864,1705264284136,-652.39,0.00030958,2]
[311602865,1705264284145,-500.0,0.00030958,2]
[311602866,1705264284154,-500.0,0.00030958,2]
[311602867,1705264284164,-500.0,0.00030958,2]
[311602868,1705264284173,-1030.54,0.00030958,2]
[311602869,1705264284182,-500.0,0.00030958,2]
[311602870,1705264284191,-500.0,0.00030958,2]
[311602871,1705264284201,-511.13857607,0.00030958,2]
[311602872,1705264284210,-500.0,0.00030958,2]
[311602873,1705264284220,-500.0,0.00030958,2]
[311602874,1705264284229,-500.0,0.00030958,2]
[311602875,1705264284238,-1012.56,0.00030958,2]
[311602876,1705264284247,-602.82,0.00030958,2]
[311602877,1705264284257,-763.69,0.00030958,2]
[311602878,1705264284267,-500.0,0.00030958,2]
[311602879,1705264284276,-500.0,0.00030958,2]
[311602880,1705264284285,-500.0,0.00030958,2]
[311602881,1705264284294,-525.95,0.00030958,2]
[311602882,1705264284303,-500.0,0.00030958,2]
[311602883,1705264284313,-500.0,0.00030958,2]
[311602884,1705264284322,-500.0,0.00030958,2]
[311602885,1705264284331,-507.67,0.00030958,2]
[311602886,1705264284340,-500.0,0.00030958,2]
[311602887,1705264284349,-500.0,0.00030958,2]
[311602888,1705264284361,-513.81,0.00030958,2]
[311602889,1705264284371,-636.62,0.00030958,2]
[311602890,1705264284381,-500.0,0.00030958,2]
[311602891,1705264284390,-514.0541642,0.00030958,2]
[311602892,1705264284399,-902.91,0.00030958,2]
[311602893,1705264284408,-226.51908104,0.00030958,2]
[311602894,1705264284417,-767.34,0.00030958,2]
[311602895,1705264284426,-500.0,0.00030958,2]
[311602896,1705264284435,-1333.47,0.00030958,2]
[311602897,1705264284444,-638.06,0.00030958,2]
[311602898,1705264284453,-500.0,0.00030958,2]
[311602899,1705264284462,-402.13094846,0.00030958,2]
[311602900,1705264284471,-803.03,0.00030958,2]
[311602901,1705264284481,-500.0,0.00030958,2]
[311602902,1705264284490,-500.0,0.00030958,2]
[311602903,1705264284498,-500.0,0.00030958,2]
[311602904,1705264284507,-500.0,0.00030958,2]
[311602905,1705264284517,-500.0,0.00030958,2]
[311602906,1705264284526,-536.45,0.00030958,2]
[311602907,1705264284534,-500.0,0.00030958,2]
[311602908,1705264284543,-598.26,0.00030958,2]
[311602909,1705264284552,-661.41,0.00030958,2]
[311602910,1705264284561,-500.0,0.00030958,2]
[311602911,1705264284570,-1303.11,0.00030958,2]
[311602912,1705264284579,-500.0,0.00030958,2]
[311602913,1705264284588,-776.96,0.00030958,2]
[311602914,1705264284597,-500.0,0.00030958,2]
[311602915,1705264284607,-619.53,0.00030958,2]
[311602916,1705264284616,-186.03,0.00030958,2]
[311602917,1705264284625,-500.0,0.00030958,2]
[311602918,1705264284634,-583.54,0.00030958,2]
[311602919,1705264284643,-500.0,0.00030958,2]
[311602920,1705264284652,-1031.14,0.00030958,2]
[311602921,1705264284662,-500.0,0.00030958,2]
[311602922,1705264284671,-1069.22,0.00030958,2]
[311602923,1705264284679,-668.9,0.00030958,2]
[311602924,1705264284688,-500.0,0.00030958,2]
[311602925,1705264284698,-500.0,0.00030958,2]
[311602926,1705264284707,-500.0,0.00030958,2]
[311602927,1705264284716,-500.0,0.00030958,2]
[311602928,1705264284725,-522.71,0.00030958,2]
[311602929,1705264284734,-500.0,0.00030958,2]
[311602930,1705264284742,-500.0,0.00030958,2]
[311602931,1705264284751,-623.93,0.00030958,2]
[311602932,1705264284761,-524.27,0.00030958,2]
[311602933,1705264284770,-1298.17,0.00030958,2]
[311602934,1705264284779,-500.0,0.00030958,2]
[311602935,1705264284788,-500.0,0.00030958,2]
[311602936,1705264284798,-500.0,0.00030958,2]
[311602937,1705264284807,-705.28,0.00030958,2]
[311602938,1705264284816,-553.43,0.00030958,2]
[311602939,1705264284825,-841.22,0.00030958,2]
[311602940,1705264284835,-779.76,0.00030958,2]
[311602941,1705264284845,-500.0,0.00030958,2]
[311602942,1705264284855,-594.72,0.00030958,2]
[311602943,1705264284864,-663.62,0.00030958,2]
[311602944,1705264284873,-754.6,0.00030958,2]
[311602945,1705264284882,-971.46,0.00030958,2]
[311602946,1705264284891,-500.0,0.00030958,2]
[311602947,1705264284900,-500.0,0.00030958,2]
[311602948,1705264284909,-500.0,0.00030958,2]
[311602949,1705264284919,-500.0,0.00030958,2]
[311602950,1705264284928,-640.22,0.00030958,2]
[311602951,1705264284937,-500.0,0.00030958,2]
[311602952,1705264284946,-880.9,0.00030958,2]
[311602953,1705264284956,-500.0,0.00030958,2]
[311602954,1705264284965,-1002.82,0.00030958,2]
[311602955,1705264284974,-668.12,0.00030958,2]
[311602956,1705264284983,-690.19,0.00030958,2]
[311602957,1705264284992,-604.35,0.00030958,2]
[311602958,1705264285002,-213.70120236,0.00030958,2]
[311602959,1705264285012,-500.0,0.00030958,2]
[311602960,1705264285021,-500.0,0.00030958,2]
[311602961,1705264285030,-688.38,0.00030958,2]
[311602962,1705264285039,-619.28,0.00030958,2]
[311602963,1705264285048,-500.0,0.00030958,2]
[311602964,1705264285057,-529.02,0.00030958,2]
[311602965,1705264285067,-779.6,0.00030958,2]
[311602966,1705264285076,-1160.15,0.00030958,2]
[311602967,1705264285085,-500.0,0.00030958,2]
[311602968,1705264285095,-1042.53,0.00030958,2]
[311602969,1705264285105,-353.46925296,0.00030958,2]
[311602970,1705264285228,-500.0,0.00030958,2]
[311602971,1705264285249,-500.0,0.00030958,2]
[311602972,1705264285259,-500.0,0.00030958,2]
[311602973,1705264285269,-500.0,0.00030958,2]
[311602974,1705264285278,-421.80251311,0.00030958,2]
[311602975,1705264285287,-790.69,0.00030958,2]
[311602976,1705264285297,-684.1,0.00030958,2]
[311602977,1705264285307,-293.89554153,0.00030958,2]
[311602978,1705264285316,-500.0,0.00030958,2]
[311602979,1705264285326,-647.62,0.00030958,2]
[311602980,1705264285336,-500.0,0.00030958,2]
[311602981,1705264285345,-500.0,0.00030958,2]
[311602982,1705264285356,-500.0,0.00030958,2]
[311602983,1705264285366,-500.0,0.00030958,2]
[311602984,1705264285375,-3167.32,0.00030958,2]
[311602985,1705264285385,-500.0,0.00030958,2]
[311602986,1705264285394,-571.94,0.00030958,2]
[311602987,1705264285403,-522.59,0.00030958,2]
[311602988,1705264285413,-567.97,0.00030958,2]
[311602989,1705264285422,-500.0,0.00030958,2]
[311602990,1705264285431,-500.0,0.00030958,2]
[311602991,1705264285441,-500.0,0.00030958,2]
[311602992,1705264285450,-500.0,0.00030958,2]
[311602993,1705264285460,-500.0,0.00030958,2]
[311602994,1705264285469,-500.0,0.00030958,2]
[311602995,1705264285478,-774.9,0.00030958,2]
[311602996,1705264285488,-500.0,0.00030958,2]
[311602997,1705264285498,-1088.65,0.00030958,2]
[311602998,1705264285508,-884.91,0.00030958,2]
[311602999,1705264285519,-537.49,0.00030958,2]
[311603000,1705264285529,-1154.9,0.00030958,2]
[311603001,1705264285539,-500.0,0.00030958,2]
[311603002,1705264285550,-500.0,0.00030958,2]
[311603003,1705264285560,-766.25,0.00030958,2]
[311603004,1705264285569,-500.0,0.00030958,2]
[311603005,1705264285578,-500.0,0.00030958,2]
[311603006,1705264285588,-500.0,0.00030958,2]
[311603007,1705264285597,-739.11,0.00030958,2]
[311603008,1705264285606,-500.0,0.00030958,2]
[311603009,1705264285616,-500.0,0.00030958,2]
[311603010,1705264285626,-2842.79,0.00030958,2]
[311603011,1705264285635,-703.48,0.00030958,2]
[311603012,1705264285646,-500.0,0.00030958,2]
[311603013,1705264285655,-500.0,0.00030958,2]
[311603014,1705264285665,-755.21,0.00030958,2]
[311603015,1705264285674,-500.0,0.00030958,2]
[311603016,1705264285684,-500.0,0.00030958,2]
[311603017,1705264285693,-500.0,0.00030958,2]
[311603018,1705264285706,-655.3,0.00030958,2]
[311603019,1705264285715,-500.0,0.00030958,2]
[311603020,1705264285726,-500.0,0.00030958,2]
[311603021,1705264285736,-649.3,0.00030958,2]
[311603022,1705264285746,-500.0,0.00030958,2]